fUST/lending_fUST_20260408
["ID","MTS","AMOUNT","RATE_DAILY","PERIOD"]
[420004711,1775604643105,-151.0,0.00022566,2]
[420004712,1775604643115,-151.0,0.00022566,2]
[420004713,1775604643126,-151.0,0.00022566,2]
[420004714,1775604643137,-151.0,0.00022566,2]
[420004715,1775604643147,-151.0,0.00022566,2]
[420004716,1775604643160,-151.0,0.00022568,2]
[420004717,1775604643171,-345.245405,0.00022568,2]
[420004718,1775604643183,-345.245405,0.00022568,2]
[420004719,1775604643195,-345.245405,0.00022568,2]
[420004720,1775604643206,-345.245405,0.00022568,2]
[420004721,1775604643217,-151.0,0.00022568,2]
[420004722,1775604643228,-151.0,0.00022568,2]
[420004723,1775604643240,-151.0,0.00022568,2]
[420004724,1775604643250,-151.0,0.00022568,2]
[420004725,1775604643267,-151.0,0.00022568,2]
[420004726,1775604643278,-151.0,0.00022568,2]
[420004727,1775604643289,-151.0,0.00022568,2]
[420004728,1775604643305,-151.0,0.00022568,2]
[420004729,1775604643316,-243.180823,0.00022568,2]
[420004730,1775604643327,-151.0,0.00022568,2]
[420004731,1775604643338,-156.715845,0.00022568,2]
[420004732,1775604643349,-151.0,0.00022568,2]
[420004733,1775604643360,-151.0,0.00022568,2]
[420004734,1775604643371,-151.0,0.00022568,2]
[420004735,1775604643384,-151.0,0.00022568,2]
[420004736,1775604643395,-151.0,0.00022568,2]
[420004737,1775604643405,-151.0,0.00022568,2]
[420004738,1775604643459,-151.0,0.00022568,2]
[420004739,1775604643470,-267.180819,0.00022568,2]
[420004740,1775604643481,-151.0,0.00022568,2]
[420004741,1775604643491,-151.0,0.00022568,2]
[420004742,1775604643501,-151.0,0.00022568,2]
[420004743,1775604643512,-151.0,0.00022568,2]
[420004744,1775604643524,-325.034284,0.00022568,2]
[420004745,1775604643534,-325.034284,0.00022568,2]
[420004746,1775604643550,-325.034284,0.00022568,2]
[420004747,1775604643560,-325.034284,0.00022568,2]
[420004748,1775604643572,-151.0,0.00022568,2]
[420004749,1775604643582,-325.034284,0.00022568,2]
[420004750,1775604643592,-184.343944,0.00022568,2]
[420004751,1775604643600,-325.034284,0.00022568,2]
[420004752,1775604643610,-325.034284,0.00022568,2]
[420004759,1775604643828,-325.034284,0.00022568,2]
[420004760,1775604643839,-264.883235,0.00022568,2]
[420004761,1775604643849,-228.246808,0.00022568,2]
[420004762,1775604643866,-228.246808,0.00022568,2]
[420004763,1775604643878,-228.246808,0.00022568,2]
[420004764,1775604643890,-228.246808,0.00022568,2]
[420004765,1775604643902,-228.246808,0.00022568,2]
[420004766,1775604643913,-228.246808,0.00022568,2]
[420004767,1775604643925,-228.246808,0.00022568,2]
[420004768,1775604643937,-228.246808,0.00022568,2]
[420004769,1775604643948,-151.0,0.00022568,2]
[420004770,1775604643961,-151.0,0.00022568,2]
[420004771,1775604643972,-151.0,0.00022568,2]
[420004772,1775604643987,-151.0,0.00022568,2]
[420004773,1775604643999,-151.0,0.00022568,2]
[420004774,1775604644011,-151.0,0.00022568,2]
[420004775,1775604644022,-151.0,0.00022568,2]
[420004776,1775604644035,-151.0,0.00022568,2]
[420004777,1775604644048,-151.0,0.00022568,2]
[420004778,1775604644059,-341.741985,0.00022568,2]
[420004779,1775604644072,-341.741985,0.00022568,2]
[420004780,1775604644085,-341.741985,0.00022568,2]
[420004781,1775604644096,-151.0,0.00022568,2]
[420004782,1775604644108,-151.0,0.00022568,2]
[420004784,1775604644118,-341.741985,0.00022568,2]
[420004786,1775604644130,-151.0,0.00022568,2]
[420004788,1775604644142,-341.741985,0.00022568,2]
[420004790,1775604644153,-341.741985,0.00022568,2]
[420004792,1775604644165,-345.290037,0.00022568,2]
[420004793,1775604644176,-345.290037,0.00022568,2]
[420004794,1775604644187,-498.907099,0.00022568,2]
[420004795,1775604644198,-151.0,0.00022568,2]
[420004796,1775604644210,-345.290037,0.00022568,2]
[420004797,1775604644220,-498.907099,0.00022568,2]
[420004798,1775604644231,-152.909786,0.00022568,2]
[420004799,1775604644241,-341.741985,0.00022568,2]
[420004801,1775604644250,-498.907099,0.00022568,2]
[420004802,1775604644260,-341.741985,0.00022568,2]
[420004804,1775604644270,-345.290037,0.00022568,2]
[420004805,1775604644280,-341.741985,0.00022568,2]
[420004806,1775604644290,-345.290037,0.00022568,2]
[420004807,1775604644305,-498.907099,0.00022568,2]
[420004808,1775604644316,-345.290037,0.00022568,2]
[420004810,1775604644326,-498.907099,0.00022568,2]
[420004812,1775604644337,-341.741985,0.00022568,2]
[420004814,1775604644348,-341.741985,0.00022568,2]
[420004816,1775604644358,-341.741985,0.00022568,2]
[420004818,1775604644369,-345.290037,0.00022568,2]
[420004820,1775604644381,-345.290037,0.00022568,2]
[420004821,1775604644391,-345.290037,0.00022568,2]
[420004822,1775604644401,-345.290037,0.00022568,2]
[420004823,1775604644411,-345.290037,0.00022568,2]
[420004824,1775604644421,-345.290037,0.00022568,2]
[420004825,1775604644431,-498.907099,0.00022568,2]
[420004826,1775604644441,-498.907099,0.00022568,2]
[420004827,1775604644451,-498.907099,0.00022568,2]
[420004828,1775604644461,-498.907099,0.00022568,2]
[420004829,1775604644471,-151.0,0.00022568,2]
[420004830,1775604644481,-498.907099,0.00022568,2]
[420004831,1775604644491,-151.0,0.00022568,2]
[420004832,1775604644501,-498.907099,0.00022568,2]
[420004833,1775604644511,-151.0,0.00022568,2]
[420004834,1775604644522,-498.907099,0.00022568,2]
[420004835,1775604644532,-151.0,0.00022568,2]
[420004836,1775604644545,-151.0,0.00022568,2]
[420004837,1775604644556,-151.0,0.00022568,2]
[420004838,1775604644565,-151.0,0.00022568,2]
[420004839,1775604644575,-151.0,0.00022568,2]
[420004840,1775604644585,-151.0,0.00022568,2]
[420004842,1775604644596,-151.0,0.00022568,2]
[420004844,1775604644606,-151.0,0.00022568,2]
[420004846,1775604644616,-151.0,0.00022568,2]
[420004848,1775604644627,-151.0,0.00022568,2]
[420004850,1775604644638,-151.0,0.00022568,2]
[420004851,1775604644649,-151.0,0.00022568,2]
[420004853,1775604644659,-151.0,0.00022568,2]
[420004854,1775604644670,-151.0,0.00022568,2]
[420004855,1775604644680,-151.0,0.00022568,2]
[420004856,1775604644690,-151.0,0.00022568,2]
[420004857,1775604644701,-252.740098,0.00022568,2]
[420004858,1775604644711,-151.0,0.00022568,2]
[420004860,1775604644722,-151.0,0.00022568,2]
[420004861,1775604644733,-151.0,0.00022568,2]
[420004862,1775604644745,-151.0,0.00022568,2]
[420004863,1775604644755,-151.0,0.00022568,2]
[420004864,1775604644764,-151.0,0.00022568,2]
[420004865,1775604644774,-151.0,0.00022568,2]
[420004866,1775604644784,-151.0,0.00022568,2]
[420004867,1775604644798,-151.0,0.00022568,2]
[420004868,1775604644808,-151.0,0.00022568,2]
[420004869,1775604644818,-151.0,0.00022568,2]
[420004870,1775604644828,-189.957751,0.00022568,2]
[420004871,1775604644838,-151.0,0.00022568,2]
[420004872,1775604644848,-151.0,0.00022568,2]
[420004873,1775604644858,-151.0,0.00022568,2]
[420004874,1775604644868,-151.0,0.00022568,2]
[420004875,1775604644879,-151.0,0.00022568,2]
[420004876,1775604644888,-151.0,0.00022568,2]
[420004877,1775604644897,-151.0,0.00022568,2]
[420004878,1775604644908,-151.0,0.00022568,2]
[420004879,1775604644918,-151.0,0.00022568,2]
[420004880,1775604644928,-151.0,0.00022568,2]
[420004881,1775604644939,-151.880954,0.00022568,2]
[420004882,1775604644949,-151.0,0.00022568,2]
[420004883,1775604644960,-151.0,0.00022568,2]
[420004884,1775604644970,-161.777707,0.00022568,2]
[420004885,1775604644979,-151.0,0.00022568,2]
[420004886,1775604644989,-151.0,0.00022568,2]
[420004887,1775604645000,-151.0,0.00022568,2]
[420004889,1775604645009,-151.0,0.00022568,2]
[420004890,1775604645018,-237.740727,0.00022568,2]
[420004891,1775604645028,-151.0,0.00022568,2]
[420004892,1775604645039,-151.0,0.00022568,2]
[420004893,1775604645051,-151.0,0.00022568,2]
[420004894,1775604645062,-151.0,0.00022568,2]
[420004895,1775604645072,-151.0,0.00022568,2]
[420004896,1775604645082,-151.0,0.00022568,2]
[420004897,1775604645092,-198.5774,0.00022568,2]
[420004898,1775604645102,-455.356708,0.00022568,2]
[420004899,1775604645113,-455.356708,0.00022568,2]
[420004900,1775604645123,-455.356708,0.00022568,2]
[420004901,1775604645133,-455.356708,0.00022568,2]
[420004902,1775604645143,-455.356708,0.00022568,2]
[420004903,1775604645153,-455.356708,0.00022568,2]
[420004904,1775604645162,-455.356708,0.00022568,2]
[420004905,1775604645172,-455.356708,0.00022568,2]
[420004906,1775604645182,-455.356708,0.00022568,2]
[420004907,1775604645191,-455.356708,0.00022568,2]
[420004908,1775604645201,-455.356708,0.00022568,2]
[420004909,1775604645211,-455.356702,0.00022568,2]
[420004910,1775604645221,-487.442054,0.00022568,2]
[420004911,1775604645231,-487.442054,0.00022568,2]
[420004912,1775604645242,-487.442054,0.00022568,2]
[420004913,1775604645253,-487.442054,0.00022568,2]
[420004914,1775604645263,-487.442054,0.00022568,2]
[420004915,1775604645273,-487.442054,0.00022568,2]
[420004916,1775604645284,-487.442054,0.00022568,2]
[420004917,1775604645296,-487.442054,0.00022568,2]
[420004918,1775604645306,-487.442054,0.00022568,2]
[420004919,1775604645316,-487.442054,0.00022568,2]
[420004921,1775604645325,-487.442054,0.00022568,2]
[420004923,1775604645334,-487.442048,0.00022568,2]
[420004925,1775604645344,-151.0,0.00022568,2]
[420004926,1775604645353,-180.172333,0.00022568,2]
[420004927,1775604645363,-769.176078,0.00022568,2]
[420004928,1775604645374,-769.176078,0.00022568,2]
[420004929,1775604645384,-151.0,0.00022568,2]
[420004930,1775604645395,-151.0,0.00022568,2]
[420004932,1775604645405,-769.176078,0.00022568,2]
[420004933,1775604645414,-769.176078,0.00022568,2]
[420004934,1775604645425,-769.176078,0.00022568,2]
[420004935,1775604645436,-769.176078,0.00022568,2]
[420004936,1775604645447,-151.0,0.00022568,2]
[420004937,1775604645458,-151.0,0.00022568,2]
[420004938,1775604645468,-769.176078,0.00022568,2]
[420004939,1775604645479,-769.176082,0.00022568,2]
[420004940,1775604645489,-486.306545,0.00022568,2]
[420004941,1775604645499,-486.306545,0.00022568,2]
[420004942,1775604645509,-486.306545,0.00022568,2]
[420004943,1775604645519,-486.306545,0.00022568,2]
[420004944,1775604645529,-486.306545,0.00022568,2]
[420004946,1775604645540,-486.306545,0.00022568,2]
[420004948,1775604645552,-486.306545,0.00022568,2]
[420004949,1775604645562,-486.306551,0.00022568,2]
[420004950,1775604645572,-606.716702,0.00022568,2]
[420004951,1775604645581,-606.716702,0.00022568,2]
[420004952,1775604645591,-606.716702,0.00022568,2]
[420004953,1775604645601,-606.716702,0.00022568,2]
[420004954,1775604645611,-606.716702,0.00022568,2]
[420004955,1775604645621,-606.716702,0.00022568,2]
[420004956,1775604645631,-606.716702,0.00022568,2]
[420004957,1775604645641,-606.716707,0.00022568,2]
[420004958,1775604645652,-483.917919,0.00022568,2]
[420004959,1775604645664,-483.917919,0.00022568,2]
[420004960,1775604645673,-483.917919,0.00022568,2]
[420004961,1775604645683,-483.917921,0.00022568,2]
[420004962,1775604645693,-151.0,0.00022568,2]
[420004963,1775604645702,-151.0,0.00022568,2]
[420004964,1775604645712,-151.0,0.00022568,2]
[420004965,1775604645721,-151.0,0.00022568,2]
[420004966,1775604645730,-500.0,0.00022569,2]
[420004967,1775604645740,-47546.1894266,0.0002257,2]
[420004968,1775604645750,-2870.1650438,0.0002257,2]
[420004969,1775604645760,-151.0,0.0002257,2]
[420004970,1775604645769,-345.245405,0.0002257,2]
[420004971,1775604645778,-345.245405,0.0002257,2]
[420004972,1775604645788,-345.245405,0.0002257,2]
[420004973,1775604645801,-345.245405,0.0002257,2]
[420004975,1775604645810,-151.0,0.0002257,2]
[420004977,1775604645818,-151.0,0.0002257,2]
[420004978,1775604645828,-151.0,0.0002257,2]
[420004980,1775604645838,-151.0,0.0002257,2]
[420004982,1775604645848,-151.0,0.0002257,2]
[420004984,1775604645857,-151.0,0.0002257,2]
[420004986,1775604645867,-151.0,0.0002257,2]
[420004988,1775604645877,-151.0,0.0002257,2]
[420004990,1775604645887,-3299.2423536,0.0002257,2]
[420004992,1775604645897,-151.0,0.0002257,2]
[420004994,1775604645908,-151.0,0.0002257,2]
[420004996,1775604645918,-151.0,0.0002257,2]
[420004998,1775604645928,-151.0,0.0002257,2]
[420005000,1775604645938,-151.0,0.0002257,2]
[420005001,1775604645948,-151.0,0.0002257,2]
[420005002,1775604645958,-151.0,0.0002257,2]
[420005003,1775604645967,-151.0,0.0002257,2]
[420005004,1775604645978,-151.0,0.0002257,2]
[420005005,1775604645987,-221.340773,0.0002257,2]
[420005006,1775604645997,-325.034284,0.0002257,2]
[420005007,1775604646008,-325.034284,0.0002257,2]
[420005008,1775604646018,-325.034284,0.0002257,2]
[420005009,1775604646028,-325.034284,0.0002257,2]
[420005010,1775604646038,-325.034284,0.0002257,2]
[420005011,1775604646049,-325.034284,0.0002257,2]
[420005012,1775604646059,-325.034284,0.0002257,2]
[420005013,1775604646069,-325.034282,0.0002257,2]
[420005014,1775604646078,-228.246808,0.0002257,2]
[420005015,1775604646089,-228.246808,0.0002257,2]
[420005016,1775604646099,-228.246808,0.0002257,2]
[420005017,1775604646109,-228.246808,0.0002257,2]
[420005018,1775604646119,-228.246808,0.0002257,2]
[420005019,1775604646129,-228.246808,0.0002257,2]
[420005020,1775604646140,-228.246808,0.0002257,2]
[420005021,1775604646151,-228.246798,0.0002257,2]
[420005022,1775604646161,-151.0,0.0002257,2]
[420005023,1775604646171,-151.0,0.0002257,2]
[420005024,1775604646181,-151.0,0.0002257,2]
[420005025,1775604646191,-341.741985,0.0002257,2]
[420005026,1775604646202,-151.0,0.0002257,2]
[420005027,1775604646212,-341.741985,0.0002257,2]
[420005028,1775604646222,-345.290037,0.0002257,2]
[420005029,1775604646232,-498.907099,0.0002257,2]
[420005030,1775604646241,-341.741985,0.0002257,2]
[420005032,1775604646251,-345.290037,0.0002257,2]
[420005033,1775604646261,-341.741977,0.0002257,2]
[420005034,1775604646271,-345.290037,0.0002257,2]
[420005036,1775604646281,-345.29003,0.0002257,2]
[420005038,1775604646291,-498.907099,0.0002257,2]
[420005040,1775604646304,-498.907099,0.0002257,2]
[420005042,1775604646314,-151.0,0.0002257,2]
[420005045,1775604646324,-498.9071,0.0002257,2]
[420005047,1775604646334,-151.0,0.0002257,2]
[420005048,1775604646345,-180.28421,0.0002257,2]
[420005050,1775604646355,-151.0,0.0002257,2]
[420005052,1775604646366,-151.0,0.0002257,2]
[420005054,1775604646377,-151.0,0.0002257,2]
[420005057,1775604646391,-151.0,0.0002257,2]
[420005059,1775604646401,-151.0,0.0002257,2]
[420005061,1775604646412,-151.0,0.0002257,2]
[420005063,1775604646424,-151.0,0.0002257,2]
[420005065,1775604646435,-151.0,0.0002257,2]
[420005067,1775604646446,-597.23351832,0.00022573,2]
[420005069,1775604646457,-545.02493129,0.00022573,2]
[420005071,1775604646467,-504.57204641,0.00022573,2]
[420005073,1775604646478,-500.0,0.00022573,2]
[420005075,1775604646488,-500.0,0.00022573,2]
[420005077,1775604646498,-500.0,0.00022573,2]
[420005078,1775604646510,-477.63101294,0.00022573,2]
[420005081,1775604646521,-500.0,0.00022573,2]
[420005083,1775604646531,-500.0,0.00022573,2]
[420005085,1775604646541,-500.0,0.00022573,2]
[420005087,1775604646553,-500.0,0.00022573,2]
[420005088,1775604646564,-500.0,0.00022573,2]
[420005090,1775604646573,-500.0,0.00022573,2]
[420005092,1775604646583,-500.0,0.00022573,2]
[420005094,1775604646594,-500.0,0.00022573,2]
[420005096,1775604646604,-500.0,0.00022573,2]
[420005098,1775604646614,-151.0,0.00022573,2]
[420005100,1775604646624,-151.0,0.00022573,2]
[420005102,1775604646633,-151.0,0.00022573,2]
[420005104,1775604646643,-151.0,0.00022573,2]
[420005106,1775604646653,-151.0,0.00023,2]
[420005108,1775604646662,-187.0,0.00023,2]
[420005110,1775604646673,-600.0,0.00023016,10]
[420005112,1775604646683,-500.0,0.00023121,2]
[420005114,1775604646692,-1000.0,0.00023121,2]
[420005116,1775604646702,-331.58691595,0.00023121,2]
[420005118,1775604646713,-1000.0,0.00023121,2]
[420005120,1775604646722,-1000.0,0.00023121,2]
[420005122,1775604646732,-1000.0,0.00023121,2]
[420005124,1775604646743,-580.41335141,0.00023121,2]
[420005126,1775604646754,-1000.0,0.00023121,2]
[420005128,1775604646765,-504.50195692,0.00023121,2]
[420005130,1775604646775,-1000.0,0.00023121,2]
[420005132,1775604646786,-1000.0,0.00023121,2]
[420005134,1775604646798,-345.245405,0.00023167,2]
[420005136,1775604646808,-345.245405,0.00023167,2]
[420005139,1775604646820,-345.245405,0.00023167,2]
[420005141,1775604646834,-345.245405,0.00023167,2]
[420005143,1775604646844,-151.0,0.00023167,2]
[420005145,1775604646854,-151.0,0.00023167,2]
[420005147,1775604646864,-151.0,0.00023167,2]
[420005149,1775604646874,-151.0,0.00023167,2]
[420005151,1775604646884,-151.0,0.00023167,2]
[420005153,1775604646894,-8292.139649,0.00023167,2]
[420005155,1775604646904,-186.4589059,0.00023232,2]
[420005156,1775604646914,-1971.98073678,0.00023541,2]
[420005158,1775604646924,-200.0,0.00023541,2]
[420005160,1775604646934,-1009.02840622,0.00023668,2]
[420005162,1775604646944,-1500.0,0.00023668,2]
[420005164,1775604646955,-1500.0,0.00023668,2]
[420005166,1775604646965,-1500.0,0.00023668,2]
[420005168,1775604646975,-173.38364682,0.0002371,5]
[420005170,1775604646986,-500.0,0.00023904,2]
[420005172,1775604646996,-151.0,0.00024,2]
[420005174,1775604647006,-187.0,0.00024,2]
[420005176,1775604647016,-8292.139649,0.00024067,2]
[420005178,1775604647027,-151.0,0.00024067,2]
[420005180,1775604647037,-687.0,0.00024068,2]
[420005182,1775604647049,-283.97541167,0.00024151,5]
[420005184,1775604647059,-1000.0,0.00024216,2]
[420005186,1775604647069,-500.0,0.00024216,2]
[420005188,1775604647079,-2000.0,0.00024216,2]
[420005190,1775604647089,-345.245405,0.00024258,2]
[420005192,1775604647100,-345.245405,0.00024258,2]
[420005194,1775604647111,-345.245405,0.00024258,2]
[420005197,1775604647121,-345.245405,0.00024258,2]
[420005199,1775604647132,-151.0,0.00024258,2]
[420005201,1775604647142,-153.082568,0.00024258,2]
[420005203,1775604647152,-685.0,0.00024596,2]
[420005205,1775604647162,-259.15921279,0.00024619,2]
[420005207,1775604647172,-466.48658302,0.00024619,2]
[420005209,1775604647182,-379.56605879,0.00024619,2]
[420005211,1775604647192,-683.21890581,0.00024619,2]
[420005213,1775604647202,-416.81183847,0.00024619,2]
[420005215,1775604647213,-750.26130925,0.00024619,2]
[420005217,1775604647223,-1333.79788311,0.00024619,2]
[420005219,1775604647233,-1214.61138811,0.00024619,2]
[420005221,1775604647242,-2084.05919235,0.00024619,2]
[420005222,1775604647252,-270.83333333,0.0002462,2]
[420005224,1775604647263,-1971.98073678,0.0002462,2]
[420005226,1775604647273,-205.610513,0.00024658,2]
[420005228,1775604647284,-205.610513,0.00024658,2]
[420005230,1775604647294,-205.610513,0.00024658,2]
[420005233,1775604647307,-205.610513,0.00024658,2]
[420005235,1775604647317,-205.610513,0.00024658,2]
[420005237,1775604647327,-205.610513,0.00024658,2]
[420005239,1775604647337,-205.610513,0.00024658,2]
[420005241,1775604647347,-205.610513,0.00024658,2]
[420005243,1775604647358,-205.610513,0.00024658,2]
[420005245,1775604647368,-205.610513,0.00024658,2]
[420005247,1775604647377,-205.610513,0.00024658,2]
[420005249,1775604647387,-205.610513,0.00024658,2]
[420005251,1775604647397,-205.610513,0.00024658,2]
[420005253,1775604647407,-205.610513,0.00024658,2]
[420005255,1775604647417,-205.610513,0.00024658,2]
[420005257,1775604647428,-205.610513,0.00024658,2]
[420005279,1775604647645,-205.610513,0.00024658,2]
[420005281,1775604647656,-205.610513,0.00024658,2]
[420005283,1775604647666,-205.610513,0.00024658,2]
[420005285,1775604647676,-205.610519,0.00024658,2]
[420005287,1775604647685,-2500.0,0.00024764,2]
[420005290,1775604647695,-638.44172278,0.00024773,2]
[420005292,1775604647705,-500.0,0.00024773,2]
[420005294,1775604647717,-500.0,0.00024773,2]
[420005296,1775604647729,-670.83,0.00024773,2]
[420005298,1775604647740,-670.83,0.00024773,2]
[420005300,1775604647750,-670.83,0.00024773,2]
[420005302,1775604647760,-670.83,0.00024773,2]
[420005304,1775604647770,-670.83,0.00024773,2]
[420005306,1775604647780,-670.83,0.00024773,2]
[420005308,1775604647791,-670.83,0.00024773,2]
[420005310,1775604647803,-670.83,0.00024773,2]
[420005312,1775604647813,-670.83,0.00024773,2]
[420005314,1775604647825,-670.83,0.00024773,2]
[420005316,1775604647835,-670.83,0.00024773,2]
[420005318,1775604647845,-1104.07,0.00024773,2]
[420005320,1775604647855,-215.996164,0.00024773,2]
[420005322,1775604647865,-345.245405,0.00024773,2]
[420005324,1775604647876,-345.245405,0.00024773,2]
[420005326,1775604647886,-345.245405,0.00024773,2]
[420005328,1775604647897,-345.245408,0.00024773,2]
[420005330,1775604647906,-151.0,0.00024773,2]
[420005332,1775604647917,-800.0,0.0002479,2]
[420005334,1775604647927,-2171.04151965,0.000248,2]
[420005336,1775604647938,-800.0,0.00024829,2]
[420005338,1775604647947,-500.0,0.00024835,2]
[420005340,1775604647957,-5467.61290027,0.00024836,2]
[420005342,1775604647967,-685.0,0.00024846,7]
[420005345,1775604647977,-428.84043568,0.00024873,2]
[420005347,1775604647987,-500.0,0.00024873,2]
[420005349,1775604647996,-475.07459281,0.00024873,2]
[420005351,1775604648006,-500.0,0.00024873,2]
[420005353,1775604648017,-500.0,0.00024873,2]
[420005355,1775604648027,-500.0,0.00024873,2]
[420005357,1775604648038,-500.0,0.00024873,2]
[420005359,1775604648052,-403.4540485,0.00024873,2]
[420005361,1775604648062,-500.0,0.00024873,2]
[420005363,1775604648072,-500.0,0.00024873,2]
[420005365,1775604648083,-500.0,0.00024873,2]
[420005367,1775604648092,-500.0,0.00024873,2]
[420005369,1775604648102,-500.0,0.00024873,2]
[420005371,1775604648112,-500.0,0.00024873,2]
[420005373,1775604648122,-500.0,0.00024873,2]
[420005375,1775604648132,-500.0,0.00024873,2]
[420005377,1775604648141,-800.0,0.00024873,2]
[420005379,1775604648151,-829.30948092,0.00024873,2]
[420005380,1775604648161,-800.0,0.00024878,2]
[420005382,1775604648170,-500.0,0.00024899,2]
[420005385,1775604648181,-500.0,0.00024899,2]
[420005387,1775604648192,-500.0,0.00024899,2]
[420005389,1775604648202,-500.0,0.00024899,2]
[420005391,1775604648212,-198388.407107,0.000249,2]
[420005393,1775604648222,-258.958931,0.00024935,14]
[420005395,1775604648232,-800.0,0.00024956,2]
[420005397,1775604648242,-800.0,0.00024956,2]
[420005399,1775604648252,-8292.139649,0.00024966,2]
[420005401,1775604648261,-500.0,0.00024973,2]
[420005403,1775604648271,-500.0,0.00024973,2]
[420005405,1775604648281,-500.0,0.00024973,2]
[420005407,1775604648290,-72262.85179485,0.0002498,2]
[420005408,1775604648302,-22043.1563453,0.00024981,2]
[420005410,1775604648312,-246.05092097,0.00024988,2]
[420005412,1775604648321,-500.0,0.00024989,2]
[420005414,1775604648331,-500.0,0.00024989,2]
[420005416,1775604648341,-500.0,0.00024989,2]
[420005418,1775604648350,-500.0,0.00024989,2]
[420005420,1775604648360,-500.0,0.00024989,2]
[420005422,1775604648371,-44086.3126905,0.0002499,2]
[420005424,1775604648381,-770.86544052,0.00024991,7]
[420005427,1775604648392,-1868.0048391,0.00024991,7]
[420005429,1775604648401,-500.0,0.00024999,2]
[420005431,1775604648411,-214.13241105,0.00024999,2]
[420005433,1775604648422,-1367.50115836,0.00025,2]
[420005435,1775604648432,-136570.01514624,0.00025,4]
[420005437,1775604648442,-151.0,0.00025,2]
[420005439,1775604648452,-187.0,0.00025,2]
[420005441,1775604648461,-800.0,0.00025007,2]
[420005443,1775604648472,-257.0,0.00025022,7]
[420005445,1775604648482,-800.0,0.00025028,2]
[420005447,1775604648493,-800.0,0.00025044,2]
[420005449,1775604648503,-800.0,0.00025061,2]
[420005451,1775604648513,-22043.1563453,0.00025134,2]
[420005453,1775604648523,-800.0,0.00025144,2]
[420005455,1775604648534,-685.0,0.00025178,2]
[420005457,1775604648544,-789.0,0.000252,2]
[420005459,1775604648556,-325.1311657,0.00025202,2]
[420005461,1775604648566,-1897.83029393,0.00025282,2]
[420005463,1775604648576,-1472.0,0.00025294,2]
[420005465,1775604648586,-3000.0,0.00025312,2]
[420005467,1775604648596,-720.0,0.00025318,10]
[420005469,1775604648605,-200.09531113,0.00025321,2]
[420005471,1775604648615,-1000.0,0.00025321,2]
[420005473,1775604648624,-3944.94476496,0.00025373,2]
[420005475,1775604648633,-257.0,0.00025384,2]
[420005477,1775604648644,-257.0,0.00025392,2]
[420005479,1775604648653,-1002.9699845,0.00025421,2]
[420005481,1775604648664,-507.39642577,0.00025421,2]
[420005483,1775604648674,-1000.0,0.00025421,2]
[420005485,1775604648684,-1000.0,0.00025421,2]
[420005487,1775604648693,-872.53094259,0.00025421,2]
[420005489,1775604648703,-503.29485619,0.00025421,2]
[420005491,1775604648713,-1000.0,0.00025421,2]
[420005493,1775604648723,-1000.0,0.00025421,2]
[420005495,1775604648733,-1000.0,0.00025421,2]
[420005497,1775604648743,-1000.0,0.00025421,2]
[420005499,1775604648753,-1000.0,0.00025421,2]
[420005501,1775604648764,-1000.0,0.00025421,2]
[420005503,1775604648773,-1000.0,0.00025421,2]